[Event "*** Titled Tuesday Blitz"]
[Site "Chess.com"]
[Date "2021.04.27"]
[Round "8"]
[White "DenLaz"]
[Black "adnan_nn"]
[Result "0-1"]
[WhiteElo "2813"]
[BlackElo "2711"]
[TimeControl "180+1"]
[EndTime "11:28:09 PDT"]
[Termination "adnan_nn won by resignation"]

1. d4 {[%clk 0:03:00.9]} 1... Nf6 {[%clk 0:02:59.3]} 2. c4 {[%clk 0:03:01.2]}
2... g6 {[%clk 0:02:59.5]} 3. Nf3 {[%clk 0:03:00.9]} 3... Bg7 {[%clk 0:02:57.3]}
4. g3 {[%clk 0:03:01.4]} 4... O-O {[%clk 0:02:56.5]} 5. Bg2 {[%clk 0:03:01.8]}
5... Nc6 {[%clk 0:02:52]} 6. Nc3 {[%clk 0:02:57]} 6... d5 {[%clk 0:02:49.2]} 7.
cxd5 {[%clk 0:02:56.6]} 7... Nxd5 {[%clk 0:02:49.1]} 8. O-O {[%clk 0:02:57.2]}
8... Nb6 {[%clk 0:02:48.4]} 9. e3 {[%clk 0:02:57.3]} 9... Re8 {[%clk 0:02:48.7]}
10. h3 {[%clk 0:02:57.1]} 10... e5 {[%clk 0:02:46.1]} 11. d5 {[%clk 0:02:57.1]}
11... Na5 {[%clk 0:02:44.3]} 12. Qc2 {[%clk 0:02:57.4]} 12... e4 {[%clk
0:02:36.6]} 13. Nxe4 {[%clk 0:02:51.5]} 13... Qxd5 {[%clk 0:02:36.4]} 14. Nd4
{[%clk 0:02:45.7]} 14... Qc4 {[%clk 0:02:31.1]} 15. Qxc4 {[%clk 0:02:36.3]}
15... Naxc4 {[%clk 0:02:32]} 16. b3 {[%clk 0:02:35.5]} 16... Ne5 {[%clk
0:02:25.8]} 17. Rd1 {[%clk 0:02:30.3]} 17... c6 {[%clk 0:02:05.9]} 18. Bb2
{[%clk 0:02:29.2]} 18... a5 {[%clk 0:02:01.8]} 19. a3 {[%clk 0:01:56.8]} 19...
Nd5 {[%clk 0:01:57.1]} 20. Nc5 {[%clk 0:01:54.6]} 20... b6 {[%clk 0:01:49.9]}
21. Nxc6 {[%clk 0:01:45.9]} 21... Nxc6 {[%clk 0:01:08.5]} 22. Bxg7 {[%clk
0:01:42.7]} 22... Nce7 {[%clk 0:01:09]} 23. Na4 {[%clk 0:00:45.1]} 23... Kxg7
{[%clk 0:01:04.7]} 24. Bxd5 {[%clk 0:00:44.9]} 24... Nxd5 {[%clk 0:01:04.9]} 25.
Rxd5 {[%clk 0:00:45.8]} 25... Bxh3 {[%clk 0:01:03.1]} 26. Nxb6 {[%clk
0:00:45.4]} 26... Rab8 {[%clk 0:01:03.7]} 27. Nc4 {[%clk 0:00:42]} 27... Be6
{[%clk 0:00:45.8]} 28. Rd4 {[%clk 0:00:39.7]} 28... Bxc4 {[%clk 0:00:39.6]} 29.
bxc4 {[%clk 0:00:39]} 29... Rb3 {[%clk 0:00:36.1]} 30. Rc1 {[%clk 0:00:26]}
30... Rxa3 {[%clk 0:00:33.3]} 31. c5 {[%clk 0:00:26.1]} 31... Rc8 {[%clk
0:00:33.1]} 32. c6 {[%clk 0:00:25.4]} 32... Rb3 {[%clk 0:00:33.5]} 33. Rd7
{[%clk 0:00:12.2]} 33... Rb6 {[%clk 0:00:29]} 34. c7 {[%clk 0:00:12.4]} 34...
Rb7 {[%clk 0:00:27.3]} 35. e4 {[%clk 0:00:12.8]} 35... a4 {[%clk 0:00:22]} 36.
e5 {[%clk 0:00:11.6]} 36... a3 {[%clk 0:00:19.2]} 37. e6 {[%clk 0:00:10.6]}
37... a2 {[%clk 0:00:19.7]} 38. Rxf7+ {[%clk 0:00:10.8]} 38... Kg8 {[%clk
0:00:18.8]} 39. Ra1 {[%clk 0:00:05.8]} 39... Rb1+ {[%clk 0:00:17.3]} 40. Kg2
{[%clk 0:00:03.1]} 40... Rxa1 {[%clk 0:00:17.7]} 41. Rd7 {[%clk 0:00:04]} 41...
Rc1 {[%clk 0:00:14.7]} 42. Rd8+ {[%clk 0:00:03.8]} 42... Kg7 {[%clk 0:00:15.3]}
43. Rxc8 {[%clk 0:00:04.3]} 43... a1=Q {[%clk 0:00:14.1]} 44. e7 {[%clk
0:00:04.5]} 44... Rg1+ {[%clk 0:00:11.3]} 45. Kf3 {[%clk 0:00:04.5]} 45... Qd1+
{[%clk 0:00:10.5]} 46. Kf4 {[%clk 0:00:04.3]} 46... Qd2+ {[%clk 0:00:09.2]} 47.
Kf3 {[%clk 0:00:04.5]} 47... Qd3+ {[%clk 0:00:07.9]} 48. Kf4 {[%clk 0:00:04.7]}
48... Qf5+ {[%clk 0:00:06.5]} 49. Ke3 {[%clk 0:00:05.2]} 49... Qxc8 {[%clk
0:00:04.4]} 0-1

[Event "*** Titled Tuesday Blitz"]
[Site "Chess.com"]
[Date "2021.04.27"]
[Round "8"]
[White "827883"]
[Black "Manukyan_Artak"]
[Result "0-1"]
[WhiteElo "2280"]
[BlackElo "2457"]
[TimeControl "180+1"]
[EndTime "11:28:10 PDT"]
[Termination "Manukyan_Artak won by checkmate"]

1. e4 {[%clk 0:02:52.9]} 1... c6 {[%clk 0:02:59.9]} 2. c4 {[%clk 0:02:51]} 2...
d5 {[%clk 0:03:00.8]} 3. cxd5 {[%clk 0:02:51.9]} 3... cxd5 {[%clk 0:03:01.2]} 4.
exd5 {[%clk 0:02:52.8]} 4... Nf6 {[%clk 0:03:01.9]} 5. Qa4+ {[%clk 0:02:53.2]}
5... Nbd7 {[%clk 0:03:00.9]} 6. Nc3 {[%clk 0:02:53.5]} 6... g6 {[%clk
0:03:01.3]} 7. Bc4 {[%clk 0:02:54.1]} 7... Bg7 {[%clk 0:03:01.8]} 8. d3 {[%clk
0:02:54.4]} 8... O-O {[%clk 0:03:02.2]} 9. Nf3 {[%clk 0:02:55.3]} 9... Nb6
{[%clk 0:03:02.6]} 10. Qb3 {[%clk 0:02:55.6]} 10... Bf5 {[%clk 0:03:03.2]} 11.
O-O {[%clk 0:02:53.5]} 11... Rc8 {[%clk 0:03:03.7]} 12. Re1 {[%clk 0:02:45.5]}
12... Nfd7 {[%clk 0:02:57.7]} 13. Bg5 {[%clk 0:02:34.7]} 13... Re8 {[%clk
0:02:38.1]} 14. d6 {[%clk 0:02:19.4]} 14... Nxc4 {[%clk 0:02:37.5]} 15. dxc4
{[%clk 0:01:42.1]} 15... Be6 {[%clk 0:02:18.5]} 16. Qxb7 {[%clk 0:01:11.5]}
16... Nc5 {[%clk 0:01:49.7]} 17. Qxa7 {[%clk 0:00:49.8]} 17... Qxd6 {[%clk
0:01:46.6]} 18. Rad1 {[%clk 0:00:49.1]} 18... Qb8 {[%clk 0:01:37.7]} 19. Qa3
{[%clk 0:00:39.3]} 19... Bxc4 {[%clk 0:01:34.7]} 20. Rxe7 {[%clk 0:00:32.5]}
20... Rxe7 {[%clk 0:01:33]} 21. Bxe7 {[%clk 0:00:33.4]} 21... Nd3 {[%clk
0:01:28.3]} 22. b3 {[%clk 0:00:10.6]} 22... Bxc3 {[%clk 0:01:05]} 23. bxc4
{[%clk 0:00:10.7]} 23... Nf4 {[%clk 0:01:05.1]} 24. Bd6 {[%clk 0:00:09.6]} 24...
Rd8 {[%clk 0:00:45]} 25. c5 {[%clk 0:00:07.6]} 25... Bb4 {[%clk 0:00:27.3]} 26.
Qe3 {[%clk 0:00:07.4]} 26... Ne6 {[%clk 0:00:21.6]} 27. h3 {[%clk 0:00:06.9]}
27... Bxc5 {[%clk 0:00:20.3]} 28. Bxb8 {[%clk 0:00:06.7]} 28... Rxd1+ {[%clk
0:00:19.4]} 29. Kh2 {[%clk 0:00:07.5]} 29... Bxe3 {[%clk 0:00:19.7]} 30. fxe3
{[%clk 0:00:08.4]} 30... Ra1 {[%clk 0:00:19.8]} 31. Be5 {[%clk 0:00:07.9]} 31...
Rxa2 {[%clk 0:00:19.8]} 32. Nd4 {[%clk 0:00:08.2]} 32... Nxd4 {[%clk 0:00:18]}
33. Bxd4 {[%clk 0:00:09.1]} 33... f5 {[%clk 0:00:17.6]} 34. Kg3 {[%clk
0:00:09.7]} 34... Kf7 {[%clk 0:00:17.4]} 35. Kf3 {[%clk 0:00:10.4]} 35... Ra3
{[%clk 0:00:15.5]} 36. Kg3 {[%clk 0:00:10.5]} 36... Ke6 {[%clk 0:00:15.2]} 37.
Kf3 {[%clk 0:00:11]} 37... Kd5 {[%clk 0:00:15.4]} 38. Bg7 {[%clk 0:00:10.9]}
38... Ra4 {[%clk 0:00:13.6]} 39. Bh6 {[%clk 0:00:11.4]} 39... Re4 {[%clk
0:00:13.3]} 40. Bg5 {[%clk 0:00:11.7]} 40... Ke6 {[%clk 0:00:13.2]} 41. Bh6
{[%clk 0:00:12.2]} 41... Kf6 {[%clk 0:00:13.3]} 42. Bf4 {[%clk 0:00:12.8]} 42...
g5 {[%clk 0:00:12.8]} 43. Bh2 {[%clk 0:00:13.5]} 43... h5 {[%clk 0:00:12.5]} 44.
Bg3 {[%clk 0:00:13.9]} 44... h4 {[%clk 0:00:09.2]} 45. Bh2 {[%clk 0:00:14.1]}
45... Kg6 {[%clk 0:00:07.6]} 46. Bb8 {[%clk 0:00:14.2]} 46... Ra4 {[%clk
0:00:07.6]} 47. Bc7 {[%clk 0:00:14.5]} 47... Kh5 {[%clk 0:00:08]} 48. Bb8 {[%clk
0:00:15]} 48... g4+ {[%clk 0:00:08]} 49. Kf2 {[%clk 0:00:15]} 49... Ra2+ {[%clk
0:00:07.6]} 50. Kf1 {[%clk 0:00:14.8]} 50... g3 {[%clk 0:00:05.7]} 51. Bf4
{[%clk 0:00:12.6]} 51... Kg6 {[%clk 0:00:05.7]} 52. Be5 {[%clk 0:00:12.1]} 52...
Rc2 {[%clk 0:00:05]} 53. Bf4 {[%clk 0:00:08.4]} 53... Kf6 {[%clk 0:00:04.4]} 54.
Kg1 {[%clk 0:00:07.2]} 54... Rc1# {[%clk 0:00:03.2]} 0-1

[Event "*** Titled Tuesday Blitz"]
[Site "Chess.com"]
[Date "2021.04.27"]
[Round "8"]
[White "JiiHart"]
[Black "ExtremeLearner"]
[Result "1-0"]
[WhiteElo "2072"]
[BlackElo "2411"]
[TimeControl "180+1"]
[EndTime "11:28:11 PDT"]
[Termination "JiiHart won by resignation"]

1. e4 {[%clk 0:03:00.9]} 1... c6 {[%clk 0:02:59.9]} 2. d4 {[%clk 0:03:00.2]}
2... d5 {[%clk 0:03:00.4]} 3. Nc3 {[%clk 0:03:00.8]} 3... dxe4 {[%clk
0:03:00.1]} 4. Nxe4 {[%clk 0:03:01.7]} 4... Nf6 {[%clk 0:03:00.8]} 5. Nxf6+
{[%clk 0:03:01.3]} 5... exf6 {[%clk 0:03:01.7]} 6. c3 {[%clk 0:03:00.1]} 6...
Bd6 {[%clk 0:03:02]} 7. Bd3 {[%clk 0:02:59.9]} 7... O-O {[%clk 0:03:02.3]} 8.
Qf3 {[%clk 0:02:59.8]} 8... Re8+ {[%clk 0:02:53.6]} 9. Ne2 {[%clk 0:02:59.9]}
9... Nd7 {[%clk 0:02:52.6]} 10. O-O {[%clk 0:02:59.7]} 10... Nf8 {[%clk
0:02:52.4]} 11. Bf4 {[%clk 0:02:47.3]} 11... Ng6 {[%clk 0:02:41.6]} 12. Bxd6
{[%clk 0:02:44.9]} 12... Qxd6 {[%clk 0:02:42.5]} 13. Rfe1 {[%clk 0:02:44]} 13...
Be6 {[%clk 0:02:35.8]} 14. c4 {[%clk 0:02:29.4]} 14... Rad8 {[%clk 0:02:27.2]}
15. b3 {[%clk 0:02:14]} 15... a6 {[%clk 0:02:10.6]} 16. Rad1 {[%clk 0:01:49.8]}
16... Qd7 {[%clk 0:02:01.2]} 17. h3 {[%clk 0:01:41.3]} 17... b5 {[%clk 0:01:52]}
18. Nf4 {[%clk 0:01:27.9]} 18... Bf5 {[%clk 0:01:09.4]} 19. Rxe8+ {[%clk
0:01:17.8]} 19... Rxe8 {[%clk 0:01:07.9]} 20. Nxg6 {[%clk 0:01:07.7]} 20... hxg6
{[%clk 0:01:03]} 21. Bxf5 {[%clk 0:01:05.4]} 21... gxf5 {[%clk 0:01:03.9]} 22.
d5 {[%clk 0:01:04.3]} 22... c5 {[%clk 0:00:55.6]} 23. d6 {[%clk 0:00:59]} 23...
g6 {[%clk 0:00:48.5]} 24. Qd5 {[%clk 0:00:55.7]} 24... Re5 {[%clk 0:00:45.1]}
25. Qa8+ {[%clk 0:00:55.1]} 25... Kg7 {[%clk 0:00:44.1]} 26. Qxa6 {[%clk
0:00:51.6]} 26... b4 {[%clk 0:00:43]} 27. Qb5 {[%clk 0:00:48.2]} 27... Qe6
{[%clk 0:00:22.5]} 28. d7 {[%clk 0:00:43.4]} 28... Re1+ {[%clk 0:00:22.9]} 29.
Rxe1 {[%clk 0:00:42.3]} 29... Qxe1+ {[%clk 0:00:23.8]} 30. Kh2 {[%clk
0:00:42.6]} 30... Qe5+ {[%clk 0:00:15.1]} 31. g3 {[%clk 0:00:40.5]} 31... Qd4
{[%clk 0:00:15.1]} 32. Kg1 {[%clk 0:00:27.8]} 32... Qd1+ {[%clk 0:00:13.4]} 33.
Kg2 {[%clk 0:00:27.5]} 33... f4 {[%clk 0:00:05.7]} 34. Qc6 {[%clk 0:00:26.6]}
34... fxg3 {[%clk 0:00:02.1]} 35. Qd5 {[%clk 0:00:17.9]} 35... Qe2 {[%clk
0:00:02.5]} 36. Kxg3 {[%clk 0:00:17.6]} 36... Qf1 {[%clk 0:00:02.4]} 37. d8=Q
{[%clk 0:00:16.7]} 37... Qg1+ {[%clk 0:00:02.9]} 38. Kf3 {[%clk 0:00:15.7]}
38... Qh1+ {[%clk 0:00:02.8]} 39. Ke2 {[%clk 0:00:15.8]} 39... Qxh3 {[%clk
0:00:02.4]} 40. Qf3 {[%clk 0:00:14.9]} 40... Qe6+ {[%clk 0:00:01.6]} 41. Qe3
{[%clk 0:00:12.6]} 41... Qf5 {[%clk 0:00:02.1]} 42. Qd5 {[%clk 0:00:12.3]} 42...
Qc2+ {[%clk 0:00:02.4]} 43. Qed2 {[%clk 0:00:12.5]} 43... Qb1 {[%clk 0:00:01.7]}
44. Qxc5 {[%clk 0:00:10.8]} 44... Qg1 {[%clk 0:00:02.6]} 45. Qce3 {[%clk
0:00:10.2]} 45... Qg4+ {[%clk 0:00:03]} 46. Kd3 {[%clk 0:00:10.1]} 46... Qf5+
{[%clk 0:00:02.6]} 47. Ke2 {[%clk 0:00:10.4]} 47... Qg4+ {[%clk 0:00:02.7]} 48.
Qf3 {[%clk 0:00:09.9]} 48... Qe6+ {[%clk 0:00:03.3]} 49. Qde3 {[%clk 0:00:10]}
49... Qa6 {[%clk 0:00:03.9]} 50. Qef4 {[%clk 0:00:09.3]} 50... Qxa2+ {[%clk
0:00:03.9]} 51. Kf1 {[%clk 0:00:09.9]} 51... Qa1+ {[%clk 0:00:03.4]} 52. Kg2
{[%clk 0:00:10.4]} 52... g5 {[%clk 0:00:03.7]} 53. Qf5 {[%clk 0:00:10.2]} 53...
Qd4 {[%clk 0:00:02.4]} 54. Qh5 {[%clk 0:00:09.9]} 54... Qh4 {[%clk 0:00:01.7]}
55. Qxh4 {[%clk 0:00:09.8]} 55... Kf8 {[%clk 0:00:02.6]} 1-0

[Event "*** Titled Tuesday Blitz"]
[Site "Chess.com"]
[Date "2021.04.27"]
[Round "8"]
[White "sokidze"]
[Black "nocnypako"]
[Result "1-0"]
[WhiteElo "2700"]
[BlackElo "2552"]
[TimeControl "180+1"]
[EndTime "11:28:16 PDT"]
[Termination "sokidze won on time"]

1. e4 {[%clk 0:03:00.9]} 1... e6 {[%clk 0:02:59.2]} 2. d4 {[%clk 0:03:00.1]}
2... d5 {[%clk 0:02:43.3]} 3. Nd2 {[%clk 0:02:59.8]} 3... c5 {[%clk 0:02:37.2]}
4. exd5 {[%clk 0:02:59.3]} 4... Qxd5 {[%clk 0:02:34.9]} 5. Ngf3 {[%clk
0:02:58.8]} 5... cxd4 {[%clk 0:02:33.9]} 6. Bc4 {[%clk 0:02:59.1]} 6... Qd6
{[%clk 0:02:32.7]} 7. O-O {[%clk 0:02:58.8]} 7... Nf6 {[%clk 0:02:26.1]} 8. Qe2
{[%clk 0:02:53.2]} 8... Nc6 {[%clk 0:02:16.9]} 9. Rd1 {[%clk 0:02:31.5]} 9...
Be7 {[%clk 0:02:15]} 10. Nb3 {[%clk 0:02:09]} 10... O-O {[%clk 0:02:12.7]} 11.
Nbxd4 {[%clk 0:02:06.7]} 11... Nxd4 {[%clk 0:02:13.6]} 12. Rxd4 {[%clk
0:02:07.2]} 12... Qb6 {[%clk 0:02:05.1]} 13. c3 {[%clk 0:01:58.7]} 13... Bc5
{[%clk 0:01:58.3]} 14. Rh4 {[%clk 0:01:50.4]} 14... Bd7 {[%clk 0:01:40.7]} 15.
Bg5 {[%clk 0:01:43.7]} 15... Nd5 {[%clk 0:01:39.9]} 16. Ne5 {[%clk 0:01:30.7]}
16... Bc6 {[%clk 0:01:12.8]} 17. Bd3 {[%clk 0:01:29]} 17... f5 {[%clk
0:00:48.7]} 18. Nc4 {[%clk 0:01:27.2]} 18... Qc7 {[%clk 0:00:36.1]} 19. Qxe6+
{[%clk 0:01:26.9]} 19... Qf7 {[%clk 0:00:31.4]} 20. Qxf7+ {[%clk 0:00:56.6]}
20... Rxf7 {[%clk 0:00:31]} 21. Ne5 {[%clk 0:00:57.2]} 21... Rff8 {[%clk
0:00:29.9]} 22. Nxc6 {[%clk 0:00:50.5]} 22... bxc6 {[%clk 0:00:30.8]} 23. Rc4
{[%clk 0:00:48.5]} 23... Be7 {[%clk 0:00:18.8]} 24. Bxe7 {[%clk 0:00:42.7]}
24... Nxe7 {[%clk 0:00:19.7]} 25. Re1 {[%clk 0:00:43.3]} 25... Rfe8 {[%clk
0:00:19]} 26. Rc5 {[%clk 0:00:37]} 26... g6 {[%clk 0:00:19.3]} 27. Bc4+ {[%clk
0:00:35.2]} 27... Kf8 {[%clk 0:00:18.9]} 28. Rce5 {[%clk 0:00:30]} 28... Rad8
{[%clk 0:00:15.7]} 29. Kf1 {[%clk 0:00:29.9]} 29... Nc8 {[%clk 0:00:15.5]} 30.
Rxe8+ {[%clk 0:00:26.9]} 30... Rxe8 {[%clk 0:00:16.4]} 31. Rxe8+ {[%clk
0:00:27.6]} 31... Kxe8 {[%clk 0:00:16.4]} 32. Ke2 {[%clk 0:00:28]} 32... Ke7
{[%clk 0:00:16.3]} 33. Ke3 {[%clk 0:00:27.4]} 33... h6 {[%clk 0:00:15.8]} 34. h4
{[%clk 0:00:24.1]} 34... Nb6 {[%clk 0:00:13.5]} 35. Bb3 {[%clk 0:00:19.1]} 35...
g5 {[%clk 0:00:13.5]} 36. hxg5 {[%clk 0:00:18.7]} 36... hxg5 {[%clk 0:00:14.4]}
37. Bc2 {[%clk 0:00:12.7]} 37... Ke6 {[%clk 0:00:13.4]} 38. Kd4 {[%clk
0:00:12.2]} 38... Nd7 {[%clk 0:00:11.5]} 39. b4 {[%clk 0:00:11.2]} 39... f4
{[%clk 0:00:10.7]} 40. Be4 {[%clk 0:00:10.7]} 40... Kd6 {[%clk 0:00:10.5]} 41.
c4 {[%clk 0:00:07.5]} 41... c5+ {[%clk 0:00:10.7]} 42. bxc5+ {[%clk 0:00:08.4]}
42... Nxc5 {[%clk 0:00:11.3]} 43. Bd5 {[%clk 0:00:08.9]} 43... Na6 {[%clk
0:00:07.8]} 44. Ke4 {[%clk 0:00:08.2]} 44... Nb4 {[%clk 0:00:08]} 45. a3 {[%clk
0:00:06.3]} 45... Nc2 {[%clk 0:00:06.7]} 46. a4 {[%clk 0:00:06.8]} 46... Ne1
{[%clk 0:00:06.9]} 47. g3 {[%clk 0:00:05.2]} 47... fxg3 {[%clk 0:00:07]} 48.
fxg3 {[%clk 0:00:06.1]} 48... Nc2 {[%clk 0:00:04.4]} 49. Kf5 {[%clk 0:00:05.4]}
49... a5 {[%clk 0:00:04.5]} 50. Kxg5 {[%clk 0:00:05.7]} 50... Ne3 {[%clk
0:00:03.1]} 51. Kf4 {[%clk 0:00:04.7]} 51... Nd1 {[%clk 0:00:03.3]} 52. g4
{[%clk 0:00:04.9]} 52... Nb2 {[%clk 0:00:03.9]} 53. g5 {[%clk 0:00:04.4]} 53...
Ke7 {[%clk 0:00:01.7]} 54. Kf5 {[%clk 0:00:03.4]} 54... Nxa4 {[%clk 0:00:01.4]}
55. g6 {[%clk 0:00:04]} 1-0

[Event "*** Titled Tuesday Blitz"]
[Site "Chess.com"]
[Date "2021.04.27"]
[Round "8"]
[White "AniJak"]
[Black "Grandmaster1369"]
[Result "1-0"]
[WhiteElo "2296"]
[BlackElo "2532"]
[TimeControl "180+1"]
[EndTime "11:28:16 PDT"]
[Termination "AniJak won by checkmate"]

1. e4 {[%clk 0:03:00.9]} 1... c5 {[%clk 0:02:00.4]} 2. Nc3 {[%clk 0:02:59.4]}
2... d6 {[%clk 0:01:59.7]} 3. g3 {[%clk 0:02:58.9]} 3... g6 {[%clk 0:01:59.4]}
4. Bg2 {[%clk 0:02:58.8]} 4... Bg7 {[%clk 0:02:00.3]} 5. d3 {[%clk 0:02:58.8]}
5... Nc6 {[%clk 0:02:01.2]} 6. Nh3 {[%clk 0:02:58.6]} 6... Nf6 {[%clk
0:01:54.6]} 7. O-O {[%clk 0:02:58.6]} 7... O-O {[%clk 0:01:53.1]} 8. f4 {[%clk
0:02:53.4]} 8... Rb8 {[%clk 0:01:53.4]} 9. f5 {[%clk 0:02:47.4]} 9... b5 {[%clk
0:01:51.6]} 10. g4 {[%clk 0:02:44.2]} 10... Nd4 {[%clk 0:01:42.3]} 11. Nf4
{[%clk 0:02:26.7]} 11... e5 {[%clk 0:01:35.8]} 12. Nfd5 {[%clk 0:02:23.7]} 12...
b4 {[%clk 0:01:33.5]} 13. Nxf6+ {[%clk 0:02:17.9]} 13... Bxf6 {[%clk 0:01:22.5]}
14. Nd5 {[%clk 0:02:17.6]} 14... Bg5 {[%clk 0:01:22.8]} 15. f6 {[%clk
0:02:15.7]} 15... Bxc1 {[%clk 0:01:19.6]} 16. Rxc1 {[%clk 0:02:16.6]} 16... h6
{[%clk 0:01:07.1]} 17. c3 {[%clk 0:02:00.1]} 17... bxc3 {[%clk 0:01:08]} 18.
bxc3 {[%clk 0:02:00.1]} 18... Ne6 {[%clk 0:01:08.6]} 19. Ne7+ {[%clk 0:01:59]}
19... Kh7 {[%clk 0:01:07.4]} 20. Nc6 {[%clk 0:01:59.1]} 20... Qc7 {[%clk
0:01:02.1]} 21. Nxb8 {[%clk 0:01:59.1]} 21... Qxb8 {[%clk 0:01:03]} 22. Rb1
{[%clk 0:01:52.4]} 22... Qc7 {[%clk 0:01:02.8]} 23. h3 {[%clk 0:01:43.7]} 23...
Ba6 {[%clk 0:00:59.4]} 24. Qd2 {[%clk 0:01:31]} 24... Nf4 {[%clk 0:00:33.4]} 25.
c4 {[%clk 0:01:30.4]} 25... Ne6 {[%clk 0:00:30.6]} 26. Rb2 {[%clk 0:01:28.7]}
26... Nd4 {[%clk 0:00:30.4]} 27. Rfb1 {[%clk 0:01:15.3]} 27... Qd8 {[%clk
0:00:22.7]} 28. Qf2 {[%clk 0:01:12.8]} 28... Qa5 {[%clk 0:00:20.7]} 29. Bf1
{[%clk 0:01:06.2]} 29... Qc3 {[%clk 0:00:17.4]} 30. Kg2 {[%clk 0:01:01.7]} 30...
Ne6 {[%clk 0:00:06.4]} 31. Qd2 {[%clk 0:00:59.6]} 31... Nf4+ {[%clk 0:00:05.8]}
32. Kh2 {[%clk 0:00:54.2]} 32... Qd4 {[%clk 0:00:05.6]} 33. Qf2 {[%clk
0:00:36.2]} 33... Qc3 {[%clk 0:00:05.5]} 34. Qd2 {[%clk 0:00:31.2]} 34... Qd4
{[%clk 0:00:05.4]} 35. Qc2 {[%clk 0:00:24.7]} 35... Qe3 {[%clk 0:00:05.3]} 36.
Qf2 {[%clk 0:00:24.3]} 36... Qd4 {[%clk 0:00:02]} 37. Qxd4 {[%clk 0:00:23.9]}
37... cxd4 {[%clk 0:00:02.2]} 38. Rb8 {[%clk 0:00:23.1]} 38... Rxb8 {[%clk
0:00:01.9]} 39. Rxb8 {[%clk 0:00:22.8]} 39... g5 {[%clk 0:00:02.6]} 40. Ra8
{[%clk 0:00:21.4]} 40... Kg6 {[%clk 0:00:03.2]} 41. Rxa7 {[%clk 0:00:21.5]}
41... Bc8 {[%clk 0:00:04.1]} 42. Rc7 {[%clk 0:00:20.1]} 42... Be6 {[%clk
0:00:03.3]} 43. a4 {[%clk 0:00:19.9]} 43... Nd5 {[%clk 0:00:01.9]} 44. cxd5
{[%clk 0:00:18.2]} 44... Bxd5 {[%clk 0:00:02.1]} 45. exd5 {[%clk 0:00:18]} 45...
h5 {[%clk 0:00:03]} 46. a5 {[%clk 0:00:17.7]} 46... hxg4 {[%clk 0:00:03.2]} 47.
hxg4 {[%clk 0:00:17.6]} 47... e4 {[%clk 0:00:04.1]} 48. dxe4 {[%clk 0:00:17.4]}
48... d3 {[%clk 0:00:05]} 49. Bxd3 {[%clk 0:00:15.8]} 49... Kxf6 {[%clk
0:00:05.5]} 50. a6 {[%clk 0:00:15.6]} 50... Ke5 {[%clk 0:00:06.3]} 51. a7 {[%clk
0:00:16]} 51... f5 {[%clk 0:00:07.2]} 52. a8=Q {[%clk 0:00:16.1]} 52... fxe4
{[%clk 0:00:05.7]} 53. Qh8+ {[%clk 0:00:15.8]} 53... Kf4 {[%clk 0:00:04.9]} 54.
Qf6+ {[%clk 0:00:15.4]} 54... Ke3 {[%clk 0:00:05.3]} 55. Bxe4 {[%clk 0:00:15.6]}
55... Kxe4 {[%clk 0:00:06]} 56. Re7+ {[%clk 0:00:15.1]} 56... Kd3 {[%clk
0:00:06.6]} 57. Qf3+ {[%clk 0:00:14.8]} 57... Kc4 {[%clk 0:00:07.5]} 58. Re4+
{[%clk 0:00:13.9]} 58... Kc5 {[%clk 0:00:08.1]} 59. Qc3+ {[%clk 0:00:13.2]}
59... Kxd5 {[%clk 0:00:07.9]} 60. Qd3+ {[%clk 0:00:13.6]} 60... Kc5 {[%clk
0:00:08.2]} 61. Rc4+ {[%clk 0:00:13.8]} 61... Kb6 {[%clk 0:00:09]} 62. Qb3+
{[%clk 0:00:14.2]} 62... Ka5 {[%clk 0:00:09.9]} 63. Ra4# {[%clk 0:00:14.8]} 1-0